bitfinex-derivatives/quotes_SOLF0:USTF0_20250415
["timestamp","ask_amount","ask_price","bid_price","bid_amount"]
[1744706886347,4.68548478,131.95,131.93,7.5798]
[1744706887445,12.32032967,131.95,131.93,7.63710712]
[1744706888246,4.68548478,131.94,131.93,7.63710712]
[1744706889347,4.68548478,131.94,131.93,0.05730712]
[1744706889950,4.68548478,131.94,131.93,7.63760712]
[1744706891750,4.68548478,131.94,131.93,0.05730712]
[1744706892248,12.26528478,131.94,131.93,0.05730712]
[1744706892849,4.68548478,131.94,131.93,0.05730712]
[1744706894356,12.26528478,131.94,131.93,0.05730712]
[1744706894754,4.68548478,131.94,131.89,27.58]
[1744706895052,4.68548478,131.9,131.89,35.1623]
[1744706895556,4.68548478,131.9,131.85,29.5931]
[1744706895755,4.68548478,131.88,131.86,0.04944323]
[1744706895951,4.68548478,131.88,131.87,7.5834]
[1744706896153,0.05350102,131.88,131.87,7.5834]
[1744706898557,4.7389858,131.88,131.86,7.63719442]
[1744706899061,4.7389858,131.88,131.86,0.05319442]
[1744706899660,4.7389858,131.88,131.86,7.63739442]
[1744706901360,12.3222858,131.88,131.86,7.63739442]
[1744706901559,4.68548478,131.87,131.86,0.05319442]
[1744706904063,4.68548478,131.87,131.86,7.63759442]
[1744706904862,4.68548478,131.87,131.86,0.05319442]
[1744706909753,12.26928478,131.87,131.86,0.05319442]
[1744706911365,12.26928478,131.87,131.82,27.58]
[1744706911560,4.68548478,131.85,131.82,27.58]
[1744706912066,4.68548478,131.85,131.84,7.5855]
[1744706913364,4.74126409,131.86,131.84,7.5855]
[1744706913864,4.74126409,131.86,131.85,7.5849]
[1744706914069,0.05577931,131.86,131.85,7.5849]
[1744706915062,4.68548478,131.91,131.85,32.24548478]
[1744706915265,4.68548478,131.91,131.87,4.68548478]
[1744706915963,4.68548478,131.91,131.89,7.5824]
[1744706916162,0.05566025,131.9,131.89,7.5824]
[1744706918768,4.74114503,131.9,131.89,7.5824]
[1744706919761,4.74114503,131.9,131.88,7.64122004]
[1744706919967,4.68548478,131.89,131.88,0.05832004]
[1744706921168,12.26808478,131.89,131.88,0.05832004]
[1744706923171,4.68548478,131.89,131.85,27.56]
[1744706923363,4.68548478,131.87,131.82,4.68548478]
[1744706923670,32.24548478,131.89,131.84,4.68548478]
[1744706923870,4.68548478,131.9,131.85,32.24548478]
[1744706924267,0.05291158,131.89,131.88,7.5829]
[1744706927374,0.05291158,131.89,131.88,35.1429]
[1744706928869,29.7188,131.93,131.88,35.1429]
[1744706928870,4.68548478,131.92,131.91,7.5815]
[1744706929068,4.68548478,131.93,131.88,32.24548478]
[1744706929370,4.68548478,131.92,131.88,27.56]
[1744706929578,4.68548478,131.89,131.88,27.56]
[1744706931573,12.26808478,131.89,131.88,27.56]
[1744706932175,4.68548478,131.89,131.88,27.56]
[1744706932576,4.68548478,131.89,131.87,7.63138797]
[1744706932771,4.68548478,131.88,131.87,7.63138797]
[1744706934376,4.68548478,131.88,131.87,0.04788797]
[1744706935576,12.26868478,131.88,131.87,0.04788797]
[1744706936274,4.68548478,131.88,131.87,0.04788797]
[1744706936875,12.26868478,131.88,131.87,0.04788797]
[1744706939974,4.68548478,131.88,131.87,7.63168797]
[1744706941072,4.68548478,131.89,131.88,7.5827]
[1744706942477,4.68548478,131.89,131.87,7.63138797]
[1744706942680,4.68548478,131.88,131.87,7.63138797]
[1744706943683,4.68548478,131.89,131.88,7.5829]
[1744706943979,4.7410569,131.9,131.87,0.04788797]
[1744706944380,0.05557212,131.9,131.89,7.5826]
[1744706946675,4.68548478,131.94,131.93,7.5803]
[1744706946981,4.68548478,131.95,131.93,7.5803]
[1744706947883,4.73358966,131.95,131.93,7.63783205]
[1744706949582,4.73358966,131.95,131.93,0.05753205]
[1744706949882,12.31288966,131.95,131.93,0.05753205]
[1744706950282,4.68548478,131.94,131.93,0.05753205]
[1744706951077,12.26528478,131.94,131.93,0.05753205]
[1744706951781,7.5817,131.91,131.86,6.80968478]
[1744706951982,4.68548478,131.89,131.87,27.54]
[1744706952274,4.68548478,131.91,131.87,27.54]
[1744706952780,4.68548478,131.92,131.87,32.22548478]
[1744706952982,4.68548478,131.92,131.91,7.5815]
[1744706955679,4.68548478,131.92,131.88,0.04996456]
[1744706955983,4.68548478,131.89,131.88,0.04996456]
[1744706956282,4.68548478,131.89,131.88,7.63286456]
[1744706956782,4.68548478,131.89,131.88,0.04996456]
[1744706957085,12.26808478,131.89,131.88,0.04996456]
[1744706957279,4.68548478,131.89,131.88,0.04996456]
[1744706958183,12.26808478,131.89,131.88,0.04996456]
[1744706958383,4.68548478,131.89,131.88,0.04996456]
[1744706959885,0.05827425,131.9,131.88,0.04996456]
[1744706960283,0.05827425,131.9,131.89,7.5826]
[1744706963091,0.05827425,131.9,131.89,35.1226]
[1744706963790,0.05827425,131.9,131.89,7.5826]
[1744706964888,357.0,132.03,131.89,4.68548478]
[1744706965092,32.22548478,131.97,131.92,4.68548478]
[1744706965293,4.68548478,131.97,131.93,4.68548478]
[1744706965594,4.68548478,131.97,131.95,7.5789]
[1744706965983,4.74299316,131.97,131.95,0.04994346]
[1744706966189,4.74299316,131.97,131.96,7.5786]
[1744706967495,4.74299316,131.97,131.95,7.62884346]
[1744706967695,0.05750838,131.97,131.95,7.62884346]
[1744706967896,4.68548478,131.96,131.95,7.62884346]
[1744706971000,4.74299316,131.97,131.96,7.5786]
[1744706973902,12.32099316,131.97,131.95,7.62884346]
[1744706974601,4.74299316,131.97,131.96,7.5786]
[1744706975303,0.05750838,131.97,131.96,7.5786]
[1744706975499,4.74299316,131.97,131.96,7.5786]
[1744706976195,4.74299316,131.97,131.95,7.62884346]
[1744706976503,0.05750838,131.97,131.95,7.62884346]
[1744706976801,0.05750838,131.97,131.96,7.5786]
[1744706981304,4.74299316,131.97,131.95,35.14894346]
[1744706981504,4.74299316,131.97,131.95,7.62894346]
[1744706981702,12.32129316,131.97,131.95,7.62894346]
[1744706982704,12.26408478,131.96,131.95,0.04994346]
[1744706982903,12.26408478,131.96,131.9,31.7516]
[1744706983199,4.68548478,131.94,131.9,31.7516]
[1744706983904,0.05250165,131.93,131.92,7.5805]
[1744706988207,32.20548478,131.97,131.92,4.68548478]
[1744706988609,39.78358478,131.97,131.92,4.68548478]
[1744706989008,39.78358478,131.97,131.95,7.5792]
[1744706989208,4.68548478,131.96,131.95,7.5792]
[1744706989409,4.68548478,131.96,131.95,7.63580018]
[1744706993203,7.63525025,131.97,131.95,7.63580018]
[1744706993407,4.68548478,131.96,131.95,7.63580018]
[1744706995114,4.68548478,131.96,131.95,0.05660018]
[1744706995814,12.26408478,131.96,131.95,0.05660018]
[1744706996312,4.68548478,131.96,131.95,7.63580018]
[1744706999213,12.26408478,131.96,131.95,7.63580018]
[1744707000217,4.68548478,131.96,131.95,7.63580018]
[1744707001318,12.26408478,131.96,131.95,0.05660018]
[1744707012724,7.5802,131.94,131.91,7.581]
[1744707013019,12.26568478,131.94,131.91,7.581]
[1744707013824,12.32361876,131.94,131.91,7.63869467]
[1744707014425,0.05793398,131.94,131.93,7.5803]
[1744707017421,4.68548478,131.98,131.97,7.578]
[1744707018327,4.68548478,131.99,131.98,7.5775]
[1744707018520,31.7132,132.03,131.97,0.04856968]
[1744707018830,4.74186645,132.01,131.97,0.04856968]
[1744707019430,0.05638167,132.01,131.97,4.73405446]
[1744707019926,0.05638167,132.01,132.0,7.5763]
[1744707022332,4.74186645,132.01,131.97,0.04856968]
[1744707022531,4.68548478,131.98,131.97,0.04856968]
[1744707023035,4.68548478,131.98,131.97,7.62656968]
[1744707023332,4.68548478,131.98,131.97,0.04856968]
[1744707027036,12.26298478,131.98,131.97,0.04856968]
[1744707027334,4.68548478,131.98,131.97,0.04856968]
[1744707029834,12.26298478,131.98,131.97,0.04856968]
[1744707030434,4.68548478,131.98,131.97,0.04856968]
[1744707033238,12.26268478,131.99,131.97,0.04856968]
[1744707036532,4.68548478,131.99,131.97,7.62646968]
[1744707037438,4.68548478,131.99,131.98,7.5775]
[1744707037638,4.68548478,131.99,131.97,0.04856968]
[1744707038633,4.68548478,131.99,131.97,7.62626968]
[1744707039139,12.26248478,131.99,131.97,0.04856968]
[1744707039337,4.68548478,131.98,131.97,0.04856968]
[1744707039740,12.26298478,131.98,131.97,0.04856968]
[1744707040439,12.26408478,131.96,131.93,553.14]
[1744707040633,12.26408478,131.96,131.93,7.58]
[1744707040634,4.68548478,131.95,131.93,7.58]
[1744707041138,12.26468478,131.95,131.93,7.58]
[1744707041537,12.31365988,131.95,131.93,7.63504366]
[1744707042040,12.31365988,131.95,131.93,0.05504366]
[1744707042539,12.26528478,131.94,131.93,0.05504366]
[1744707044839,4.68548478,131.9,131.87,27.5]
[1744707045043,4.68548478,131.88,131.87,27.5]
[1744707045347,4.68548478,131.88,131.84,31.6787]
[1744707045542,4.68548478,131.87,131.84,29.6454]
[1744707045838,4.73626874,131.87,131.85,7.5847]
[1744707047841,4.68548478,131.86,131.84,7.63529496]
[1744707048045,0.05078396,131.87,131.84,0.05009496]
[1744707048247,0.05078396,131.87,131.84,4.73557974]
[1744707048639,0.05078396,131.87,131.85,7.5849]
[1744707049149,12.26988478,131.86,131.84,0.05009496]
[1744707049442,4.68548478,131.86,131.84,0.05009496]
[1744707049748,4.68548478,131.86,131.85,7.5849]
[1744707050137,4.68548478,131.86,131.84,0.05009496]
[1744707050645,4.68548478,131.86,131.84,7.63529496]
[1744707053647,4.73626874,131.87,131.85,7.5849]
[1744707054248,0.05078396,131.87,131.86,7.5844]
[1744707068962,4.73626874,131.87,131.84,0.05009496]
[1744707069167,4.73626874,131.87,131.69,359.0]
[1744707069168,4.68548478,131.85,131.74,31.5755]
[1744707069363,4.68548478,131.78,131.77,7.5895]
[1744707071670,4.74058749,131.79,131.77,7.5895]
[1744707071869,4.68548478,131.78,131.77,7.5895]
[1744707072072,0.05510271,131.79,131.78,7.589]
[1744707072271,4.68548478,131.83,131.78,4.68548478]
[1744707072670,4.68548478,131.83,131.81,7.5869]
[1744707073164,32.18548478,131.84,131.82,7.5867]
[1744707073362,0.05808402,131.83,131.82,7.5867]
[1744707073972,0.05808402,131.83,131.81,7.64005642]
[1744707074672,4.7435688,131.83,131.81,0.05305642]
[1744707075271,4.7435688,131.83,131.81,7.63995642]
[1744707075468,4.7435688,131.83,131.81,0.05305642]
[1744707075873,4.7435688,131.83,131.82,7.5867]
[1744707076076,0.05808402,131.83,131.82,7.5867]
[1744707080178,4.7435688,131.83,131.81,0.05305642]
[1744707080379,4.68548478,131.82,131.81,0.05305642]
[1744707080579,12.27218478,131.82,131.81,0.05305642]
[1744707080778,4.68548478,131.78,131.77,27.5]
[1744707081180,4.68548478,131.78,131.77,7.5893]
[1744707082783,4.73760159,131.79,131.77,7.5893]
[1744707082982,4.68548478,131.78,131.76,7.64105876]
[1744707083382,4.68548478,131.77,131.76,7.64135876]
[1744707083877,4.68548478,131.77,131.76,0.05125876]
[1744707084979,4.68548478,131.77,131.71,27.5]
[1744707085178,4.68548478,131.74,131.71,27.5]
[1744707085586,4.68548478,131.74,131.72,7.5921]
[1744707086085,4.7415336,131.74,131.72,7.64845474]
[1744707086985,4.68548478,131.73,131.72,0.05635474]
[1744707087380,12.27728478,131.73,131.72,0.05635474]
[1744707087584,4.68548478,131.73,131.68,27.52]
[1744707087784,4.68548478,131.7,131.68,27.52]
[1744707088084,4.68548478,131.7,131.68,35.1144]
[1744707088683,4.73600144,131.7,131.68,35.16464139]
[1744707089084,4.68548478,131.69,131.68,27.57024139]
[1744707089288,0.05051666,131.7,131.68,0.05024139]
[1744707090686,7.3458702,131.69,131.68,0.05024139]
[1744707091091,14.9399702,131.69,131.68,0.05024139]
[1744707091888,0.05051666,131.7,131.68,0.05024139]
[1744707092185,0.05051666,131.7,131.69,7.5941]
[1744707092686,0.05051666,131.7,131.68,0.05024139]
[1744707092990,0.05051666,131.7,131.68,7.64474139]
[1744707093291,7.3458702,131.69,131.68,0.05024139]
[1744707094491,0.05051666,131.7,131.68,0.05024139]
[1744707094790,0.05051666,131.7,131.68,7.64464139]
[1744707094990,0.05051666,131.7,131.68,0.05024139]
[1744707095391,7.64411666,131.7,131.68,0.05024139]
[1744707095580,7.3458702,131.69,131.68,0.05024139]
[1744707096589,14.9399702,131.69,131.68,0.05024139]
[1744707097590,0.05051666,131.7,131.68,0.05024139]
[1744707097591,7.64431666,131.7,131.68,0.05024139]
[1744707099396,14.9399702,131.69,131.68,0.05024139]
[1744707099695,7.3458702,131.67,131.61,29.5589]
[1744707100088,34.8658702,131.69,131.61,29.5589]
[1744707100289,34.8658702,131.69,131.62,7.3458702]
[1744707100487,0.05682588,131.67,131.66,7.5954]
[1744707102499,0.05682588,131.67,131.65,7.5963]
[1744707102699,0.05682588,131.67,131.64,27.57689421]
[1744707102897,7.40269608,131.67,131.64,0.05689421]
[1744707103098,0.05682588,131.67,131.64,0.05689421]
[1744707103499,0.05682588,131.67,131.65,27.52]
[1744707103698,0.05682588,131.67,131.66,7.5959]
[1744707106703,0.05682588,131.67,131.65,35.1162]
[1744707107097,7.40269608,131.67,131.65,27.52]
[1744707107499,14.99829608,131.67,131.65,27.52]
[1744707107700,7.40269608,131.67,131.64,0.05689421]
[1744707107903,7.596,131.66,131.64,0.05689421]
[1744707108301,7.3458702,131.65,131.64,0.05689421]
[1744707108609,7.3458702,131.65,131.58,31.7495]
[1744707108799,7.3458702,131.67,131.58,39.0953702]
[1744707108999,7.5962,131.66,131.58,39.0953702]
[1744707109505,0.0573874,131.63,131.62,7.5977]
[1744707112308,0.0573874,131.63,131.61,0.05331545]
[1744707112309,0.0573874,131.63,131.61,7.65171545]
[1744707113409,0.0573874,131.63,131.61,0.05331545]
[1744707113604,15.0011576,131.63,131.61,0.05331545]
[1744707114208,0.0573874,131.63,131.61,0.05331545]
[1744707115109,0.0573874,131.63,131.62,7.5982]
[1744707115707,0.0573874,131.63,131.61,7.65171545]
[1744707116214,0.0573874,131.63,131.61,0.05331545]
[1744707116412,0.0573874,131.63,131.62,7.5982]
[1744707118614,2.1341,131.68,131.66,7.5957]
[1744707118917,34.8858702,131.69,131.66,7.5957]
[1744707119215,7.595,131.68,131.66,7.5957]
[1744707119515,7.595,131.68,131.65,7.5961]
[1744707119816,7.64636891,131.68,131.66,0.04895156]
[1744707120211,7.64636891,131.68,131.66,7.64475156]
[1744707120816,0.05136891,131.68,131.66,7.64475156]
[1744707121115,0.05136891,131.68,131.67,7.5953]
[1744707121312,7.3458702,131.75,131.67,27.54]
[1744707121517,7.3458702,131.77,131.74,7.5907]
[1744707121714,34.8858702,131.79,131.7,34.8858702]
[1744707121916,7.3458702,131.77,131.7,27.54]
[1744707122112,7.3458702,131.77,131.73,7.5914]
[1744707122414,7.64471579,131.76,131.74,0.05329286]
[1744707122814,7.3458702,131.75,131.74,0.05329286]
[1744707123013,14.9365702,131.75,131.74,0.05329286]
[1744707125213,7.3458702,131.75,131.7,27.54]
[1744707125418,7.3458702,131.73,131.7,27.54]
[1744707125613,7.3458702,131.73,131.7,35.1335]
[1744707125814,14.9379702,131.73,131.7,35.1335]
[1744707126218,16.9551702,131.75,131.7,27.54]
[1744707126418,0.052304,131.73,131.7,27.59200038]
[1744707126820,7.644604,131.73,131.7,35.18530038]
[1744707127023,7.3981742,131.73,131.7,27.59200038]
[1744707127314,14.9902742,131.73,131.7,35.18530038]
[1744707129326,0.052304,131.73,131.7,27.59200038]
[1744707129824,7.644204,131.73,131.7,35.18530038]
[1744707131626,7.5926,131.72,131.7,27.59200038]
[1744707131826,7.5926,131.72,131.7,0.05200038]
[1744707132028,7.3981742,131.73,131.7,0.05200038]
[1744707132225,14.9388702,131.71,131.7,0.05200038]
[1744707137932,7.3458702,131.71,131.66,27.8]
[1744707138132,14.9402702,131.69,131.64,2.1415]
[1744707138328,7.3458702,131.69,131.64,2.1415]
[1744707138524,7.5948,131.68,131.64,2.1415]
[1744707138727,7.5948,131.68,131.65,7.596]
[1744707138929,7.3458702,131.69,131.64,2.1415]
[1744707139228,0.0566357,131.68,131.65,7.65158133]
[1744707140026,7.6514357,131.68,131.65,7.65158133]
[1744707140232,0.0566357,131.68,131.66,7.5958]
[1744707140432,0.0566357,131.68,131.65,0.05548133]
[1744707140828,0.0566357,131.68,131.67,7.5953]
[1744707145943,7.3458702,131.78,131.67,14.9458702]
[1744707146130,7.3458702,131.78,131.69,7.3458702]
[1744707146332,7.3458702,131.78,131.74,7.591]
[1744707146742,7.5898,131.77,131.74,7.591]
[1744707146942,7.64374707,131.77,131.74,7.64194929]
[1744707148235,0.05394707,131.77,131.74,0.05094929]
[1744707148840,0.05394707,131.77,131.76,7.5901]
[1744707149748,0.05394707,131.77,131.74,0.05094929]
[1744707150744,0.05394707,131.77,131.74,7.64174929]
[1744707151344,7.64374707,131.77,131.74,7.64174929]
[1744707152347,0.05394707,131.77,131.75,7.5905]
[1744707153345,0.05394707,131.77,131.76,7.5901]
[1744707158553,0.05394707,131.77,131.75,7.5904]
[1744707158752,0.05394707,131.77,131.74,0.05094929]
[1744707159252,0.05394707,131.77,131.76,7.5901]
[1744707164357,0.05394707,131.77,131.76,35.3101]
[1744707168850,4.74822081,131.77,131.76,27.72]
[1744707169053,4.74822081,131.77,131.74,2.02684929]
[1744707169054,12.33802081,131.77,131.74,0.05094929]
[1744707169258,4.69427374,131.76,131.74,0.05094929]
[1744707169456,4.69427374,131.76,131.74,7.64184929]
[1744707170258,4.69427374,131.76,131.75,7.5907]
[1744707170458,0.05394707,131.77,131.74,4.74522303]
[1744707171159,0.05394707,131.77,131.76,7.5901]
[1744707172354,0.05394707,131.77,131.76,35.3101]
[1744707185572,7.5875,131.81,131.78,7.5887]
[1744707185771,7.5875,131.81,131.76,27.72]
[1744707186371,2.006,131.83,131.76,27.72]
[1744707186773,0.05021126,131.81,131.8,7.5876]
[1744707188571,0.05021126,131.81,131.79,35.3081]
[1744707188871,0.05021126,131.81,131.79,27.72]
[1744707189278,0.05021126,131.81,131.79,35.3081]
[1744707190075,0.05021126,131.81,131.8,7.5878]
[1744707193276,0.05021126,131.81,131.8,12.27810604]
[1744707194579,0.05021126,131.81,131.8,7.5878]
[1744707197580,0.05021126,131.81,131.79,27.72]
[1744707199183,0.05021126,131.81,131.8,7.5878]
[1744707200486,0.05021126,131.81,131.8,12.27810604]
[1744707200687,4.69030604,131.85,131.83,7.5858]
[1744707201186,4.69030604,131.85,131.82,35.0865]
[1744707201687,12.32974482,131.85,131.82,35.13541876]
[1744707201986,0.05413878,131.85,131.82,27.54891876]
[1744707202486,4.74444482,131.85,131.82,35.13521876]
[1744707203388,4.74444482,131.85,131.83,7.586]
[1744707203589,0.05413878,131.85,131.82,27.54891876]
[1744707203886,7.63943878,131.85,131.82,35.13531876]
[1744707204089,4.69030604,131.84,131.82,35.13531876]
[1744707204389,4.69030604,131.84,131.82,27.54891876]
[1744707204688,12.27610604,131.84,131.82,27.54891876]
[1744707204990,4.69030604,131.83,131.82,27.54891876]
[1744707208692,12.27640604,131.83,131.82,27.54891876]
[1744707209594,12.27640604,131.83,131.82,0.04891876]
[1744707210795,7.587,131.82,131.79,35.0881]
[1744707210994,4.69030604,131.8,131.78,7.5887]
[1744707211586,12.27810604,131.8,131.78,7.5887]
[1744707211791,4.69030604,131.79,131.77,35.0892]
[1744707211994,4.69030604,131.79,131.78,0.05060633]
[1744707215900,12.27870604,131.79,131.78,0.05060633]
[1744707216198,4.69030604,131.79,131.72,27.5]
[1744707216393,4.69030604,131.75,131.73,7.5915]
[1744707216900,4.69030604,131.76,131.73,7.5915]
[1744707217197,4.74526753,131.76,131.73,7.64341489]
[1744707217396,4.74526753,131.76,131.74,7.5913]
[1744707219496,4.74526753,131.76,131.75,7.5907]
[1744707219701,0.05496149,131.76,131.75,7.5907]
[1744707223306,4.74526753,131.76,131.74,7.5911]
[1744707223704,4.69030604,131.75,131.73,7.64351489]
[1744707226308,4.69679927,131.75,131.73,7.64351489]
[1744707226607,4.75176076,131.76,131.74,7.5913]
[1744707227913,0.05496149,131.76,131.75,7.5907]
[1744707229312,0.05496149,131.76,131.74,7.5909]
[1744707229810,4.69679927,131.75,131.73,7.64351489]
[1744707230411,4.69679927,131.74,131.73,7.64351489]
[1744707231213,4.69679927,131.74,131.73,0.05191489]
[1744707236707,4.69679927,131.74,131.73,7.64371489]
[1744707237016,4.69679927,131.74,131.73,0.05191489]
[1744707237316,4.69679927,131.74,131.73,7.64371489]
[1744707237816,4.69679927,131.74,131.73,0.05191489]
[1744707240515,12.28809927,131.74,131.73,0.05191489]
[1744707242717,12.28809927,131.74,131.7,7.5933]
[1744707242718,4.69679927,131.74,131.69,27.52]
[1744707242918,4.69679927,131.7,131.69,27.52]
[1744707243121,4.69679927,131.7,131.69,35.1139]
[1744707243417,4.69679927,131.7,131.63,31.6306]
[1744707243612,4.69679927,131.66,131.64,7.597]
[1744707243817,4.69679927,131.66,131.65,0.05367481]
[1744707245019,4.69679927,131.67,131.65,0.05367481]
[1744707246121,4.69679927,131.66,131.65,0.05367481]
[1744707247218,12.29269927,131.66,131.65,0.05367481]
[1744707248024,4.69679927,131.66,131.65,0.05367481]
[1744707249227,12.29269927,131.66,131.65,0.05367481]
[1744707251329,4.69679927,131.67,131.65,0.05367481]
[1744707252233,4.69679927,131.67,131.65,7.65007481]
[1744707252534,4.69679927,131.66,131.65,7.65007481]
[1744707252933,4.69679927,131.66,131.65,0.05367481]
[1744707257134,12.29269927,131.66,131.65,0.05367481]
[1744707257337,4.69679927,131.66,131.65,0.05367481]
[1744707260338,12.29269927,131.66,131.65,0.05367481]
[1744707260839,12.29269927,131.66,131.59,6.1723]
[1744707260840,4.69679927,131.66,131.59,2.1051]
[1744707261040,4.69679927,131.61,131.59,2.1051]
[1744707261540,4.69679927,131.61,131.6,7.5993]
[1744707261934,4.69679927,131.61,131.59,0.05579934]
[1744707262140,4.69679927,131.6,131.59,0.05579934]
[1744707262745,12.29609927,131.6,131.59,0.05579934]
[1744707263445,7.5991,131.61,131.59,0.05579934]
[1744707263746,0.05782289,131.62,131.59,0.05579934]
[1744707264044,4.69679927,131.61,131.59,0.05579934]
[1744707265146,4.69679927,131.6,131.59,0.05579934]
[1744707268548,12.29609927,131.6,131.59,0.05579934]
[1744707270251,7.6005,131.59,131.55,7.602]
[1744707270549,4.69679927,131.57,131.55,7.602]
[1744707270749,4.69679927,131.56,131.54,7.6025]
[1744707271348,4.74636662,131.56,131.54,7.65314849]
[1744707272651,4.74636662,131.56,131.54,0.05064849]
[1744707272845,4.69679927,131.55,131.54,0.05064849]
[1744707273546,0.04956735,131.56,131.54,0.05064849]
[1744707274350,0.04956735,131.56,131.55,7.6022]
[1744707275951,0.04956735,131.56,131.55,12.29899927]
[1744707278256,0.04956735,131.56,131.55,7.6022]
[1744707279061,4.69679927,131.59,131.58,7.6005]
[1744707279258,4.69679927,131.62,131.57,32.25679927]
[1744707279454,4.69679927,131.64,131.59,4.69679927]
[1744707279655,4.69679927,131.65,131.6,32.25679927]
[1744707279950,4.69679927,131.65,131.61,27.56]
[1744707280154,4.74675654,131.64,131.62,7.65181347]
[1744707280760,4.74675654,131.64,131.63,7.5976]
[1744707281549,0.04995727,131.64,131.63,7.5976]
[1744707282757,4.74675654,131.64,131.62,7.65191347]
[1744707282958,4.69679927,131.63,131.62,0.05391347]
[1744707283358,12.29439927,131.63,131.62,0.05391347]
[1744707283562,4.69679927,131.63,131.62,0.05391347]
[1744707284365,12.29439927,131.63,131.62,0.05391347]
[1744707284565,4.69679927,131.63,131.62,0.05391347]
[1744707285373,12.29439927,131.63,131.62,0.05391347]
[1744707290665,7.5989,131.61,131.58,27.54]
[1744707290866,4.69679927,131.6,131.58,27.54]
[1744707291670,4.69679927,131.59,131.58,27.59404993]
[1744707292162,4.69679927,131.59,131.58,0.05404993]
[1744707292672,12.29669927,131.59,131.58,0.05404993]
[1744707293374,7.6013,131.57,131.55,27.54]
[1744707293669,4.69679927,131.56,131.54,7.6025]
[1744707293972,4.69679927,131.57,131.54,7.6025]
[1744707294172,4.69679927,131.56,131.54,7.6025]
[1744707294473,4.74951635,131.56,131.54,7.65974557]
[1744707295273,4.74951635,131.56,131.55,7.6022]
[1744707297273,4.74951635,131.56,131.54,7.65984557]
[1744707297475,4.69679927,131.55,131.54,0.05724557]
[1744707300575,12.29899927,131.55,131.54,0.05724557]
[1744707300776,4.69679927,131.55,131.54,0.05724557]
[1744707303879,4.74951635,131.56,131.54,0.05724557]
[1744707304178,0.05271708,131.56,131.54,0.05724557]
[1744707304374,0.05271708,131.56,131.54,27.61724557]
[1744707304780,0.05271708,131.56,131.55,7.6022]
[1744707306870,0.05271708,131.56,131.55,12.29899927]
[1744707307075,4.69679927,131.6,131.55,6.83379927]
[1744707307276,4.69679927,131.6,131.56,4.69679927]
[1744707307475,4.69679927,131.6,131.57,27.56]
[1744707308181,4.75297039,131.6,131.59,7.5996]
[1744707308486,4.75297039,131.6,131.57,27.61820681]
[1744707308779,4.75297039,131.6,131.58,7.6001]
[1744707309082,4.75297039,131.6,131.57,27.61820681]
[1744707309283,0.05617112,131.6,131.57,32.31500608]
[1744707309480,0.05617112,131.6,131.59,7.5999]
[1744707310285,27.56,131.65,131.62,7.5982]
[1744707310286,4.69679927,131.63,131.62,7.5982]
[1744707310582,4.69679927,131.63,131.6,27.54]
[1744707310773,4.69679927,131.61,131.57,27.54]
[1744707310976,4.69679927,131.59,131.57,27.54]
[1744707311179,4.74954459,131.59,131.57,7.65118267]
[1744707311373,4.69679927,131.58,131.57,7.65118267]
[1744707312284,4.74954459,131.59,131.58,7.6005]
[1744707314184,4.74954459,131.59,131.57,7.65128267]
[1744707314485,4.69679927,131.58,131.57,7.65128267]
[1744707315687,4.69679927,131.58,131.57,0.05048267]
[1744707320487,4.69679927,131.58,131.57,7.65158267]
[1744707321086,4.74954459,131.59,131.57,7.65158267]
[1744707321388,0.05274532,131.59,131.58,7.6005]
[1744707322388,0.05274532,131.59,131.58,12.29729927]
[1744707324093,32.23679927,131.65,131.58,4.69679927]
[1744707324282,4.69679927,131.65,131.6,4.69679927]
[1744707324581,4.69679927,131.67,131.62,4.69679927]
[1744707324784,4.69679927,131.67,131.64,7.5965]
[1744707325192,4.75256481,131.67,131.64,7.64732454]
[1744707325385,12.34816481,131.67,131.64,7.64732454]
[1744707327289,4.69679927,131.66,131.64,7.64732454]
[1744707328189,4.69679927,131.66,131.64,0.05082454]
[1744707328394,4.69679927,131.65,131.64,0.05082454]
[1744707329084,4.69679927,131.65,131.64,7.64782454]
[1744707329488,7.65136554,131.67,131.64,7.64782454]
[1744707329489,4.69679927,131.66,131.64,0.05082454]
[1744707330096,4.69679927,131.65,131.64,0.05082454]
[1744707330403,4.69679927,131.65,131.6,7.5991]
[1744707330594,4.69679927,131.62,131.6,7.5991]
[1744707331096,4.69679927,131.63,131.6,7.5991]
[1744707331300,4.69679927,131.62,131.6,7.5991]
[1744707331598,4.74983833,131.62,131.6,7.65676452]
[1744707332501,4.74983833,131.62,131.6,0.05766452]
[1744707333202,4.74983833,131.62,131.6,7.65686452]
[1744707333401,12.34833833,131.62,131.6,0.05766452]
[1744707333597,4.69679927,131.61,131.6,0.05766452]
[1744707336305,12.29559927,131.61,131.6,0.05766452]